[Event "Early-Titled-Tuesday-Blitz-May-07-2024"]
[Site "Chess.com"]
[Date "2024.05.07"]
[Round "11"]
[White "noblerone"]
[Black "N_I_Chess"]
[Result "0-1"]
[WhiteElo "2465"]
[BlackElo "2342"]
[TimeControl "180+1"]
[EndTime "10:14:13 PDT"]
[Termination "N_I_Chess won on time"]

1. d4 {[%clk 0:03:00.9]} 1... Nf6 {[%clk 0:02:57.8]} 2. Nf3 {[%clk 0:03:01.2]}
2... e6 {[%clk 0:02:47.9]} 3. Bg5 {[%clk 0:02:58.9]} 3... d5 {[%clk 0:02:40.2]}
4. Nbd2 {[%clk 0:02:56.2]} 4... Be7 {[%clk 0:02:37.5]} 5. e3 {[%clk 0:02:56.2]}
5... O-O {[%clk 0:02:35.7]} 6. Bd3 {[%clk 0:02:56.4]} 6... c5 {[%clk 0:02:33.1]}
7. c3 {[%clk 0:02:56.8]} 7... h6 {[%clk 0:02:13.6]} 8. Bh4 {[%clk 0:02:50.9]}
8... Nfd7 {[%clk 0:01:44.1]} 9. Bg3 {[%clk 0:02:43]} 9... Nc6 {[%clk 0:01:39.1]}
10. Rc1 {[%clk 0:02:39.8]} 10... b6 {[%clk 0:01:36.5]} 11. O-O {[%clk
0:02:37.5]} 11... Bb7 {[%clk 0:01:35.5]} 12. Ne5 {[%clk 0:02:21.8]} 12... cxd4
{[%clk 0:01:18.4]} 13. Nxc6 {[%clk 0:02:09.9]} 13... Bxc6 {[%clk 0:01:17.8]} 14.
cxd4 {[%clk 0:02:09.2]} 14... Bb7 {[%clk 0:01:06.1]} 15. Rc7 {[%clk 0:01:27.9]}
15... Bc8 {[%clk 0:00:43.4]} 16. Qc2 {[%clk 0:01:20.3]} 16... e5 {[%clk
0:00:38.9]} 17. Rc1 {[%clk 0:00:57.8]} 17... Bd6 {[%clk 0:00:28.5]} 18. Rc6
{[%clk 0:00:52.2]} 18... Qe7 {[%clk 0:00:23.3]} 19. Rxc8 {[%clk 0:00:43]} 19...
Raxc8 {[%clk 0:00:22.9]} 20. Qxc8 {[%clk 0:00:43.5]} 20... Rxc8 {[%clk
0:00:23.2]} 21. Rxc8+ {[%clk 0:00:44.4]} 21... Nf8 {[%clk 0:00:20.9]} 22. Nb3
{[%clk 0:00:19.4]} 22... g6 {[%clk 0:00:17.1]} 23. Bb5 {[%clk 0:00:08.4]} 23...
Kg7 {[%clk 0:00:14.9]} 24. h3 {[%clk 0:00:04.9]} 24... e4 {[%clk 0:00:10.4]} 25.
Re8 {[%clk 0:00:03.4]} 25... Qc7 {[%clk 0:00:09.2]} 26. Bxd6 {[%clk 0:00:03.1]}
26... Qxd6 {[%clk 0:00:10.1]} 27. Rc8 {[%clk 0:00:02.1]} 27... Ne6 {[%clk
0:00:10.3]} 0-1

[Event "Early-Titled-Tuesday-Blitz-May-07-2024"]
[Site "Chess.com"]
[Date "2024.05.07"]
[Round "11"]
[White "pfalcon1949"]
[Black "klifus"]
[Result "0-1"]
[WhiteElo "1950"]
[BlackElo "2170"]
[TimeControl "180+1"]
[EndTime "10:14:13 PDT"]
[Termination "klifus won by checkmate"]

1. e4 {[%clk 0:03:00.9]} 1... c5 {[%clk 0:02:58.7]} 2. Nf3 {[%clk 0:03:00.6]}
2... d6 {[%clk 0:02:57.7]} 3. d4 {[%clk 0:03:00.5]} 3... cxd4 {[%clk 0:02:57.7]}
4. Nxd4 {[%clk 0:03:01]} 4... Nf6 {[%clk 0:02:57.7]} 5. Nc3 {[%clk 0:03:01.2]}
5... a6 {[%clk 0:02:57.8]} 6. h3 {[%clk 0:03:00]} 6... e5 {[%clk 0:02:56.9]} 7.
Nf3 {[%clk 0:03:00.3]} 7... Be7 {[%clk 0:02:55.3]} 8. g4 {[%clk 0:03:00.4]} 8...
Be6 {[%clk 0:02:54.7]} 9. g5 {[%clk 0:03:00.6]} 9... Nfd7 {[%clk 0:02:53.3]} 10.
Be3 {[%clk 0:03:01.2]} 10... b5 {[%clk 0:02:42.3]} 11. h4 {[%clk 0:02:59.6]}
11... Nb6 {[%clk 0:02:39.9]} 12. Nd5 {[%clk 0:02:39.2]} 12... Bxd5 {[%clk
0:02:32.1]} 13. exd5 {[%clk 0:02:37.7]} 13... N8d7 {[%clk 0:02:31.8]} 14. c3
{[%clk 0:02:36.6]} 14... O-O {[%clk 0:02:24.6]} 15. Qd2 {[%clk 0:02:33.3]} 15...
Qc7 {[%clk 0:02:09.5]} 16. h5 {[%clk 0:02:30.2]} 16... Nc4 {[%clk 0:01:54.4]}
17. Bxc4 {[%clk 0:02:29.2]} 17... Qxc4 {[%clk 0:01:53.6]} 18. b3 {[%clk
0:02:11.5]} 18... Qe4 {[%clk 0:01:50.5]} 19. Rh3 {[%clk 0:02:05.2]} 19... f5
{[%clk 0:01:48.4]} 20. gxf6 {[%clk 0:01:59]} 20... Nxf6 {[%clk 0:01:35.2]} 21.
O-O-O {[%clk 0:01:39.6]} 21... Ng4 {[%clk 0:01:34]} 22. Ng5 {[%clk 0:01:34.5]}
22... Bxg5 {[%clk 0:01:30.1]} 23. Bxg5 {[%clk 0:01:32.4]} 23... Rxf2 {[%clk
0:01:29.5]} 24. Qd3 {[%clk 0:01:18.3]} 24... Qxd3 {[%clk 0:01:27.6]} 25. Rdxd3
{[%clk 0:01:18]} 25... Rxa2 {[%clk 0:01:21.2]} 26. h6 {[%clk 0:01:16.3]} 26...
Nf2 {[%clk 0:01:18]} 27. Kb1 {[%clk 0:00:56.6]} 27... Nxh3 {[%clk 0:01:15]} 28.
Kxa2 {[%clk 0:00:51.2]} 28... Nxg5 {[%clk 0:01:14.3]} 29. c4 {[%clk 0:00:52.1]}
29... g6 {[%clk 0:01:09.7]} 30. c5 {[%clk 0:00:48.8]} 30... dxc5 {[%clk
0:01:08.6]} 31. d6 {[%clk 0:00:48.8]} 31... Rd8 {[%clk 0:01:05.4]} 32. d7 {[%clk
0:00:44.3]} 32... Kf7 {[%clk 0:01:04.3]} 33. Rd5 {[%clk 0:00:42.6]} 33... Ke6
{[%clk 0:00:59.6]} 34. Rxc5 {[%clk 0:00:42.1]} 34... Rxd7 {[%clk 0:00:59.3]} 35.
Rc6+ {[%clk 0:00:42]} 35... Rd6 {[%clk 0:00:59.2]} 36. Rc7 {[%clk 0:00:42.6]}
36... e4 {[%clk 0:00:57.3]} 37. Rc8 {[%clk 0:00:39.5]} 37... Kf5 {[%clk
0:00:55.9]} 38. Re8 {[%clk 0:00:39.8]} 38... Re6 {[%clk 0:00:55.8]} 39. Rf8+
{[%clk 0:00:39]} 39... Rf6 {[%clk 0:00:52.7]} 40. Re8 {[%clk 0:00:37.6]} 40...
Ne6 {[%clk 0:00:52.6]} 41. Ka3 {[%clk 0:00:37.7]} 41... e3 {[%clk 0:00:51.4]}
42. Re7 {[%clk 0:00:37.1]} 42... e2 {[%clk 0:00:50.8]} 43. Rxh7 {[%clk
0:00:37.7]} 43... e1=Q {[%clk 0:00:49.7]} 44. Ra7 {[%clk 0:00:34]} 44... Qa5+
{[%clk 0:00:43.3]} 45. Kb2 {[%clk 0:00:32.6]} 45... b4 {[%clk 0:00:40.2]} 46. h7
{[%clk 0:00:31]} 46... Kg4 {[%clk 0:00:32.2]} 47. h8=Q {[%clk 0:00:29.6]} 47...
Rf2+ {[%clk 0:00:31]} 48. Kb1 {[%clk 0:00:28.6]} 48... Qa2+ {[%clk 0:00:29.1]}
49. Kc1 {[%clk 0:00:26.4]} 49... Qc2# {[%clk 0:00:27.9]} 0-1

[Event "Early-Titled-Tuesday-Blitz-May-07-2024"]
[Site "Chess.com"]
[Date "2024.05.07"]
[Round "11"]
[White "klimkoj"]
[Black "MagnusCarlsen"]
[Result "0-1"]
[WhiteElo "2939"]
[BlackElo "3207"]
[TimeControl "180+1"]
[EndTime "10:14:18 PDT"]
[Termination "MagnusCarlsen won by resignation"]

1. e4 {[%clk 0:03:00.9]} 1... a5 {[%clk 0:03:00.9]} 2. d4 {[%clk 0:03:00.1]}
2... Ra6 {[%clk 0:02:38.1]} 3. Bxa6 {[%clk 0:02:57.7]} 3... Nxa6 {[%clk
0:02:39]} 4. Nf3 {[%clk 0:02:58.2]} 4... g6 {[%clk 0:02:38.4]} 5. O-O {[%clk
0:02:58.4]} 5... Bg7 {[%clk 0:02:38.9]} 6. Nc3 {[%clk 0:02:59.1]} 6... d6 {[%clk
0:02:38.1]} 7. h3 {[%clk 0:02:59.1]} 7... Nf6 {[%clk 0:02:36.2]} 8. e5 {[%clk
0:02:57.5]} 8... Nd7 {[%clk 0:02:36.2]} 9. Re1 {[%clk 0:02:55.6]} 9... Nb6
{[%clk 0:02:35.5]} 10. Qe2 {[%clk 0:02:55.2]} 10... O-O {[%clk 0:02:33]} 11. Bg5
{[%clk 0:02:54]} 11... f6 {[%clk 0:02:32.2]} 12. exf6 {[%clk 0:02:53.2]} 12...
exf6 {[%clk 0:02:33.1]} 13. Bf4 {[%clk 0:02:49]} 13... Bd7 {[%clk 0:02:31.4]}
14. a4 {[%clk 0:02:46.3]} 14... Nb4 {[%clk 0:02:30.7]} 15. b3 {[%clk 0:02:38.4]}
15... Bc6 {[%clk 0:02:28.9]} 16. Rac1 {[%clk 0:02:02.2]} 16... Qd7 {[%clk
0:02:27.7]} 17. Qe6+ {[%clk 0:01:58.9]} 17... Qxe6 {[%clk 0:02:27.2]} 18. Rxe6
{[%clk 0:01:59.8]} 18... N6d5 {[%clk 0:02:06.9]} 19. Nxd5 {[%clk 0:01:56.2]}
19... Bxd5 {[%clk 0:02:07.8]} 20. Re7 {[%clk 0:01:46.4]} 20... Rc8 {[%clk
0:02:07.2]} 21. Ree1 {[%clk 0:01:32.2]} 21... Kf7 {[%clk 0:02:06]} 22. Nd2
{[%clk 0:01:23.6]} 22... g5 {[%clk 0:02:01.5]} 23. Be3 {[%clk 0:01:23.7]} 23...
Na2 {[%clk 0:02:00.4]} 24. Ra1 {[%clk 0:01:22.6]} 24... Nb4 {[%clk 0:01:59.9]}
25. Rac1 {[%clk 0:01:22.5]} 25... h6 {[%clk 0:01:59.4]} 26. Nc4 {[%clk
0:01:18.4]} 26... b6 {[%clk 0:01:53]} 27. Bd2 {[%clk 0:01:16.7]} 27... f5 {[%clk
0:01:52]} 28. Bxb4 {[%clk 0:01:15.5]} 28... axb4 {[%clk 0:01:51.8]} 29. Ne3
{[%clk 0:01:15.8]} 29... Be6 {[%clk 0:01:51]} 30. d5 {[%clk 0:01:09.1]} 30...
Bd7 {[%clk 0:01:50.8]} 31. g4 {[%clk 0:00:57.2]} 31... Bc3 {[%clk 0:01:46.8]}
32. Re2 {[%clk 0:00:54.5]} 32... Re8 {[%clk 0:01:11.1]} 33. Kf1 {[%clk
0:00:53.3]} 33... Bc8 {[%clk 0:01:02.9]} 34. gxf5 {[%clk 0:00:43.7]} 34... Re4
{[%clk 0:01:02.7]} 35. f3 {[%clk 0:00:30.2]} 35... Re5 {[%clk 0:00:58.9]} 36.
Ng4 {[%clk 0:00:28.9]} 36... Rxd5 {[%clk 0:00:58.5]} 37. Kg2 {[%clk 0:00:20.3]}
37... h5 {[%clk 0:00:57.4]} 38. Ne3 {[%clk 0:00:20.5]} 38... Re5 {[%clk
0:00:56.9]} 39. Kf2 {[%clk 0:00:15]} 39... Bd4 {[%clk 0:00:56.6]} 40. Rd1 {[%clk
0:00:14]} 40... Bc5 {[%clk 0:00:54.6]} 41. h4 {[%clk 0:00:09]} 41... Ba6 {[%clk
0:00:52.6]} 42. Rd3 {[%clk 0:00:05.3]} 42... Bxd3 {[%clk 0:00:46.4]} 43. cxd3
{[%clk 0:00:06.2]} 43... gxh4 {[%clk 0:00:45.9]} 0-1

[Event "Early-Titled-Tuesday-Blitz-May-07-2024"]
[Site "Chess.com"]
[Date "2024.05.07"]
[Round "11"]
[White "wqws"]
[Black "Irishchessman16"]
[Result "1-0"]
[WhiteElo "2680"]
[BlackElo "2561"]
[TimeControl "180+1"]
[EndTime "10:14:25 PDT"]
[Termination "wqws won on time"]

1. e4 {[%clk 0:03:00.2]} 1... c5 {[%clk 0:03:00.1]} 2. Nf3 {[%clk 0:03:00.6]}
2... Nc6 {[%clk 0:02:58.1]} 3. d4 {[%clk 0:03:01]} 3... cxd4 {[%clk 0:02:59]} 4.
Nxd4 {[%clk 0:03:01.8]} 4... Nf6 {[%clk 0:02:59.4]} 5. Nc3 {[%clk 0:03:01.8]}
5... h5 {[%clk 0:02:58.5]} 6. Bc4 {[%clk 0:02:59]} 6... g6 {[%clk 0:02:55.8]} 7.
Nxc6 {[%clk 0:02:52.1]} 7... bxc6 {[%clk 0:02:55.5]} 8. e5 {[%clk 0:02:49.8]}
8... Ng4 {[%clk 0:02:56.1]} 9. Qe2 {[%clk 0:02:49.5]} 9... Bg7 {[%clk
0:02:52.5]} 10. f4 {[%clk 0:02:46.7]} 10... O-O {[%clk 0:02:53]} 11. h3 {[%clk
0:02:46.8]} 11... Nh6 {[%clk 0:02:52.4]} 12. g4 {[%clk 0:02:44.1]} 12... d5
{[%clk 0:02:46.3]} 13. Bd3 {[%clk 0:02:44.1]} 13... hxg4 {[%clk 0:02:43.2]} 14.
hxg4 {[%clk 0:02:44.2]} 14... Bxg4 {[%clk 0:02:41.3]} 15. Qg2 {[%clk 0:02:43.1]}
15... Bf5 {[%clk 0:02:20.1]} 16. Rxh6 {[%clk 0:02:36.8]} 16... Bxd3 {[%clk
0:02:19.9]} 17. Rh1 {[%clk 0:02:25.5]} 17... Bf5 {[%clk 0:02:12.9]} 18. Be3
{[%clk 0:02:25.6]} 18... f6 {[%clk 0:01:46.6]} 19. O-O-O {[%clk 0:02:23.7]}
19... fxe5 {[%clk 0:01:44.7]} 20. fxe5 {[%clk 0:02:24]} 20... Bxe5 {[%clk
0:01:43.6]} 21. Bd4 {[%clk 0:02:23.9]} 21... Bxd4 {[%clk 0:01:37.2]} 22. Rxd4
{[%clk 0:02:24.8]} 22... Qd6 {[%clk 0:01:35.4]} 23. Rdh4 {[%clk 0:02:24.4]}
23... Kf7 {[%clk 0:01:34.5]} 24. Rh7+ {[%clk 0:02:19.3]} 24... Ke8 {[%clk
0:01:34.4]} 25. Re1 {[%clk 0:02:19.3]} 25... e6 {[%clk 0:01:26.9]} 26. Qg5
{[%clk 0:02:12.3]} 26... a5 {[%clk 0:01:17.1]} 27. Na4 {[%clk 0:02:06.4]} 27...
Rb8 {[%clk 0:01:15]} 28. Reh1 {[%clk 0:01:26]} 28... Be4 {[%clk 0:00:58.1]} 29.
R1h4 {[%clk 0:01:06.1]} 29... Qb4 {[%clk 0:00:47]} 30. c3 {[%clk 0:01:01.3]}
30... Qd6 {[%clk 0:00:38.1]} 31. Ra7 {[%clk 0:00:50.8]} 31... Qd8 {[%clk
0:00:33.4]} 32. Qe5 {[%clk 0:00:44.2]} 32... Rf1+ {[%clk 0:00:06.4]} 33. Kd2
{[%clk 0:00:42.2]} 33... Rf2+ {[%clk 0:00:05.4]} 34. Ke3 {[%clk 0:00:32.1]}
34... Rf3+ {[%clk 0:00:04.9]} 35. Kd4 {[%clk 0:00:31.1]} 35... Rd3+ {[%clk
0:00:04.6]} 36. Kc5 {[%clk 0:00:28.2]} 36... Rb5+ {[%clk 0:00:03.7]} 37. Kxc6
{[%clk 0:00:28.3]} 37... Qc8+ {[%clk 0:00:03.3]} 38. Kxb5 {[%clk 0:00:25.3]} 1-0

[Event "Early-Titled-Tuesday-Blitz-May-07-2024"]
[Site "Chess.com"]
[Date "2024.05.07"]
[Round "11"]
[White "MaxLeto"]
[Black "WiseKing_08"]
[Result "0-1"]
[WhiteElo "2432"]
[BlackElo "2595"]
[TimeControl "180+1"]
[EndTime "10:14:25 PDT"]
[Termination "WiseKing_08 won on time"]

1. a3 {[%clk 0:02:31.4]} 1... d5 {[%clk 0:02:58.9]} 2. b3 {[%clk 0:02:32.3]}
2... Nf6 {[%clk 0:02:58.7]} 3. c3 {[%clk 0:02:33.2]} 3... Bf5 {[%clk 0:02:58.7]}
4. d3 {[%clk 0:02:34.1]} 4... e5 {[%clk 0:02:58]} 5. e3 {[%clk 0:02:34.8]} 5...
c5 {[%clk 0:02:58.1]} 6. f3 {[%clk 0:02:35.2]} 6... Nc6 {[%clk 0:02:58.1]} 7. g4
{[%clk 0:02:35.8]} 7... Bg6 {[%clk 0:02:57]} 8. h4 {[%clk 0:02:36.4]} 8... h5
{[%clk 0:02:57]} 9. g5 {[%clk 0:02:36.9]} 9... Nd7 {[%clk 0:02:56.9]} 10. Bb2
{[%clk 0:02:34]} 10... Bd6 {[%clk 0:02:53.9]} 11. Ne2 {[%clk 0:02:34.5]} 11...
O-O {[%clk 0:02:50.2]} 12. Nd2 {[%clk 0:02:27.5]} 12... Bxd3 {[%clk 0:02:43.9]}
13. Ng3 {[%clk 0:02:22.6]} 13... Bg6 {[%clk 0:02:34.1]} 14. Qe2 {[%clk
0:02:20.2]} 14... e4 {[%clk 0:02:30.3]} 15. f4 {[%clk 0:02:20]} 15... f5 {[%clk
0:02:11.3]} 16. Nxh5 {[%clk 0:01:54]} 16... d4 {[%clk 0:02:10.9]} 17. cxd4
{[%clk 0:01:53.5]} 17... cxd4 {[%clk 0:02:10]} 18. Nc4 {[%clk 0:01:46.6]} 18...
Bc5 {[%clk 0:01:58.2]} 19. b4 {[%clk 0:01:29.6]} 19... Bb6 {[%clk 0:01:48.7]}
20. Nxg7 {[%clk 0:01:18]} 20... Kxg7 {[%clk 0:01:36.6]} 21. h5 {[%clk
0:01:18.6]} 21... Rh8 {[%clk 0:01:29.3]} 22. Bg2 {[%clk 0:00:57.6]} 22... Bf7
{[%clk 0:01:20.7]} 23. Nd6 {[%clk 0:00:51]} 23... Be6 {[%clk 0:01:06.4]} 24.
O-O-O {[%clk 0:00:36]} 24... Nf8 {[%clk 0:00:57]} 25. Nxe4 {[%clk 0:00:10.4]}
25... fxe4 {[%clk 0:00:55.1]} 26. Bxe4 {[%clk 0:00:11.3]} 26... Rc8 {[%clk
0:00:39.7]} 27. Kb1 {[%clk 0:00:10.4]} 27... Bd5 {[%clk 0:00:18.6]} 28. Bxd5
{[%clk 0:00:02.7]} 28... Qxd5 {[%clk 0:00:18.6]} 29. e4 {[%clk 0:00:03.3]} 29...
Qb3 {[%clk 0:00:17.7]} 30. Rd3 {[%clk 0:00:02.4]} 30... Qe6 {[%clk 0:00:16.9]}
31. e5 {[%clk 0:00:01.9]} 31... Qf5 {[%clk 0:00:16.3]} 32. Ka1 {[%clk
0:00:01.4]} 32... Ne6 {[%clk 0:00:16.4]} 33. Rf3 {[%clk 0:00:00.7]} 33... Ne7
{[%clk 0:00:12.5]} 0-1

[Event "Early-Titled-Tuesday-Blitz-May-07-2024"]
[Site "Chess.com"]
[Date "2024.05.07"]
[Round "11"]
[White "aanshnerurkar"]
[Black "Burgsvik"]
[Result "1-0"]
[WhiteElo "2471"]
[BlackElo "2324"]
[TimeControl "180+1"]
[EndTime "10:14:25 PDT"]
[Termination "aanshnerurkar won by resignation"]

1. e4 {[%clk 0:03:00.9]} 1... c5 {[%clk 0:03:00.9]} 2. Nf3 {[%clk 0:03:00.4]}
2... Nc6 {[%clk 0:02:59.2]} 3. Bb5 {[%clk 0:02:59]} 3... e6 {[%clk 0:02:58.5]}
4. O-O {[%clk 0:02:58.7]} 4... Nge7 {[%clk 0:02:57.8]} 5. d4 {[%clk 0:02:58.9]}
5... cxd4 {[%clk 0:02:56.9]} 6. Nxd4 {[%clk 0:02:59.2]} 6... Nxd4 {[%clk
0:02:57]} 7. Qxd4 {[%clk 0:02:58.7]} 7... Nc6 {[%clk 0:02:57.1]} 8. Qc3 {[%clk
0:02:58.5]} 8... a6 {[%clk 0:02:49.1]} 9. Be2 {[%clk 0:02:56.5]} 9... Qf6 {[%clk
0:02:47.8]} 10. Qxf6 {[%clk 0:02:54.9]} 10... gxf6 {[%clk 0:02:47.5]} 11. a4
{[%clk 0:02:52]} 11... Nd4 {[%clk 0:02:45.4]} 12. Bd3 {[%clk 0:02:50.5]} 12...
d6 {[%clk 0:02:38.8]} 13. Be3 {[%clk 0:02:49.3]} 13... Nc6 {[%clk 0:02:36.8]}
14. Nd2 {[%clk 0:02:49.7]} 14... Rg8 {[%clk 0:02:31.5]} 15. f4 {[%clk
0:02:44.6]} 15... e5 {[%clk 0:02:27.4]} 16. f5 {[%clk 0:02:39.4]} 16... Nb4
{[%clk 0:02:13.7]} 17. Nc4 {[%clk 0:02:32.3]} 17... Nxd3 {[%clk 0:02:12.8]} 18.
cxd3 {[%clk 0:02:31.9]} 18... Bd7 {[%clk 0:02:12]} 19. Nb6 {[%clk 0:02:31.4]}
19... Rd8 {[%clk 0:02:11.7]} 20. Nd5 {[%clk 0:02:28.9]} 20... Be7 {[%clk
0:02:09]} 21. Nc7+ {[%clk 0:02:26.7]} 21... Kf8 {[%clk 0:02:08.6]} 22. Bh6+
{[%clk 0:02:26.7]} 22... Rg7 {[%clk 0:02:08.9]} 23. Nd5 {[%clk 0:02:24.7]} 23...
Re8 {[%clk 0:02:03.5]} 24. Rf3 {[%clk 0:02:10.4]} 24... Kg8 {[%clk 0:01:57.4]}
25. Bxg7 {[%clk 0:02:10]} 25... Kxg7 {[%clk 0:01:58.3]} 26. Rc1 {[%clk
0:02:09.2]} 26... Bc6 {[%clk 0:01:57.5]} 27. Rg3+ {[%clk 0:01:55.3]} 27... Kf8
{[%clk 0:01:56.7]} 28. Kf2 {[%clk 0:01:52.1]} 28... Bd8 {[%clk 0:01:54.1]} 29.
b3 {[%clk 0:01:47.4]} 29... Bxd5 {[%clk 0:01:49.8]} 30. exd5 {[%clk 0:01:46.6]}
30... Bb6+ {[%clk 0:01:42.5]} 31. Kf3 {[%clk 0:01:43.8]} 31... Bc5 {[%clk
0:01:42.2]} 32. Ke4 {[%clk 0:01:41.8]} 32... b6 {[%clk 0:01:36.9]} 33. Rg4
{[%clk 0:01:08.1]} 33... Ke7 {[%clk 0:01:18.1]} 34. Rg7 {[%clk 0:01:04.1]} 34...
Rh8 {[%clk 0:01:15]} 35. b4 {[%clk 0:01:02.7]} 35... Kf8 {[%clk 0:01:11.8]} 36.
bxc5 {[%clk 0:00:55.9]} 36... Kxg7 {[%clk 0:01:10.3]} 37. cxb6 {[%clk
0:00:54.1]} 37... a5 {[%clk 0:01:04.6]} 38. Rc6 {[%clk 0:00:52.3]} 38... Rd8
{[%clk 0:01:02.9]} 39. Ke3 {[%clk 0:00:52.2]} 39... Kh6 {[%clk 0:01:02.8]} 40.
Kd2 {[%clk 0:00:44.4]} 40... Kg5 {[%clk 0:01:02.6]} 41. Kc3 {[%clk 0:00:44.6]}
41... Kxf5 {[%clk 0:01:01.4]} 42. Kc4 {[%clk 0:00:44.8]} 42... e4 {[%clk
0:01:01]} 43. dxe4+ {[%clk 0:00:39.2]} 43... Kxe4 {[%clk 0:01:01.1]} 44. Rc7
{[%clk 0:00:39.4]} 44... f5 {[%clk 0:00:55]} 45. Re7+ {[%clk 0:00:36.9]} 45...
Kf4 {[%clk 0:00:52.1]} 46. Kb5 {[%clk 0:00:37.1]} 46... Rc8 {[%clk 0:00:50.6]}
47. b7 {[%clk 0:00:30.9]} 47... Rc1 {[%clk 0:00:49.3]} 48. Kxa5 {[%clk
0:00:30.1]} 48... Rb1 {[%clk 0:00:48.2]} 49. Ka6 {[%clk 0:00:30.6]} 49... h5
{[%clk 0:00:48.1]} 50. a5 {[%clk 0:00:29.9]} 50... h4 {[%clk 0:00:48]} 51. Ka7
{[%clk 0:00:27.3]} 51... Kg4 {[%clk 0:00:46.8]} 52. Rxf7 {[%clk 0:00:25]} 52...
h3 {[%clk 0:00:44.4]} 53. gxh3+ {[%clk 0:00:24.2]} 53... Kf4 {[%clk 0:00:44.1]}
54. a6 {[%clk 0:00:23.5]} 1-0

[Event "Early-Titled-Tuesday-Blitz-May-07-2024"]
[Site "Chess.com"]
[Date "2024.05.07"]
[Round "11"]
[White "only_strong_moves"]
[Black "IriBu"]
[Result "0-1"]
[WhiteElo "2695"]
[BlackElo "2599"]
[TimeControl "180+1"]
[EndTime "10:14:26 PDT"]
[Termination "IriBu won by resignation"]

1. Nc3 {[%clk 0:03:00.9]} 1... d6 {[%clk 0:02:59.4]} 2. d4 {[%clk 0:02:59.8]}
2... Nf6 {[%clk 0:02:58.7]} 3. e4 {[%clk 0:02:59.7]} 3... e5 {[%clk 0:02:59.1]}
4. Nf3 {[%clk 0:02:59.2]} 4... Nbd7 {[%clk 0:02:58.9]} 5. Bc4 {[%clk 0:02:59.1]}
5... Be7 {[%clk 0:02:59.2]} 6. O-O {[%clk 0:02:58.5]} 6... c6 {[%clk 0:02:58.4]}
7. a4 {[%clk 0:02:58.3]} 7... h6 {[%clk 0:02:58.3]} 8. Qe2 {[%clk 0:02:58.4]}
8... Qc7 {[%clk 0:02:58.4]} 9. Rd1 {[%clk 0:02:57.9]} 9... Nf8 {[%clk
0:02:58.5]} 10. d5 {[%clk 0:02:53.5]} 10... Ng6 {[%clk 0:02:56.6]} 11. b3 {[%clk
0:02:50.3]} 11... Bg4 {[%clk 0:02:51.6]} 12. h3 {[%clk 0:02:48.5]} 12... Bd7
{[%clk 0:02:51.8]} 13. dxc6 {[%clk 0:02:40.6]} 13... bxc6 {[%clk 0:02:49.8]} 14.
Kh2 {[%clk 0:02:30.7]} 14... O-O {[%clk 0:02:46]} 15. g3 {[%clk 0:02:29.8]}
15... Rad8 {[%clk 0:02:44.5]} 16. Ba3 {[%clk 0:02:25.7]} 16... Bc8 {[%clk
0:02:37]} 17. Rd2 {[%clk 0:02:25.2]} 17... d5 {[%clk 0:02:10.3]} 18. exd5 {[%clk
0:02:15.7]} 18... Bxa3 {[%clk 0:02:09.3]} 19. Rxa3 {[%clk 0:02:15]} 19... cxd5
{[%clk 0:02:09.5]} 20. Nxd5 {[%clk 0:02:15.9]} 20... Nxd5 {[%clk 0:02:05.9]} 21.
Bxd5 {[%clk 0:02:16.2]} 21... Qc5 {[%clk 0:02:04.3]} 22. b4 {[%clk 0:02:14.7]}
22... Qxb4 {[%clk 0:02:00.6]} 23. Rb3 {[%clk 0:02:14.4]} 23... Qxa4 {[%clk
0:01:57.5]} 24. Rc3 {[%clk 0:02:00.7]} 24... Qd7 {[%clk 0:01:50.8]} 25. h4
{[%clk 0:01:46.2]} 25... Qh3+ {[%clk 0:01:36.5]} 26. Kg1 {[%clk 0:01:45.2]}
26... Bg4 {[%clk 0:01:20.3]} 27. Rcd3 {[%clk 0:01:45.2]} 27... Rde8 {[%clk
0:01:19.3]} 28. Ra3 {[%clk 0:01:41.7]} 28... Kh7 {[%clk 0:01:16.4]} 29. Rxa7
{[%clk 0:01:39.5]} 29... f5 {[%clk 0:01:15.6]} 30. Bf7 {[%clk 0:01:28.1]} 30...
Rxf7 {[%clk 0:01:03]} 31. Rxf7 {[%clk 0:01:29]} 31... e4 {[%clk 0:01:03.3]} 32.
Rdd7 {[%clk 0:01:18.6]} 32... Rg8 {[%clk 0:00:58.8]} 33. Qf1 {[%clk 0:01:00.3]}
33... Qxf1+ {[%clk 0:00:56.1]} 34. Kxf1 {[%clk 0:01:01.2]} 34... Bxf3 {[%clk
0:00:56.7]} 35. Rc7 {[%clk 0:00:57.2]} 35... Bg4 {[%clk 0:00:49.3]} 36. c4
{[%clk 0:00:50.5]} 36... Ne5 {[%clk 0:00:48.4]} 37. Rfe7 {[%clk 0:00:50.5]}
37... Ng6 {[%clk 0:00:41.8]} 38. Red7 {[%clk 0:00:50.2]} 38... f4 {[%clk
0:00:36.3]} 39. gxf4 {[%clk 0:00:43.5]} 39... Bxd7 {[%clk 0:00:35.5]} 40. Rxd7
{[%clk 0:00:42.5]} 40... Nxf4 {[%clk 0:00:35.5]} 41. c5 {[%clk 0:00:42.7]} 41...
Rc8 {[%clk 0:00:35.2]} 42. Rf7 {[%clk 0:00:40.7]} 42... Nd3 {[%clk 0:00:33.8]}
43. Re7 {[%clk 0:00:38.7]} 43... Nxc5 {[%clk 0:00:33.9]} 44. Re5 {[%clk
0:00:38.4]} 44... Kg6 {[%clk 0:00:32.7]} 45. Ke2 {[%clk 0:00:38.9]} 45... Kf6
{[%clk 0:00:33.2]} 46. Rd5 {[%clk 0:00:39.5]} 46... Ne6 {[%clk 0:00:33.3]} 47.
Ke3 {[%clk 0:00:39.1]} 47... Rc5 {[%clk 0:00:33.7]} 48. Rd6 {[%clk 0:00:37.2]}
48... Rf5 {[%clk 0:00:33.8]} 49. Rd2 {[%clk 0:00:34.1]} 49... Rf4 {[%clk
0:00:32.1]} 50. Ra2 {[%clk 0:00:33.7]} 50... Rxh4 {[%clk 0:00:31.8]} 51. Ra4
{[%clk 0:00:30.1]} 51... Rf4 {[%clk 0:00:30.6]} 52. Ra6 {[%clk 0:00:27.5]} 52...
Rf3+ {[%clk 0:00:31]} 53. Ke2 {[%clk 0:00:27.4]} 53... h5 {[%clk 0:00:30.3]} 54.
Ra5 {[%clk 0:00:28.3]} 54... g6 {[%clk 0:00:29.8]} 55. Rxh5 {[%clk 0:00:29.2]}
55... gxh5 {[%clk 0:00:29.8]} 0-1